bitfinex/quotes_BTCUSD_20241124
["timestamp","ask_amount","ask_price","bid_price","bid_amount"]
[1732427476913,0.0242763,97949.0,97934.0,0.0017184]
[1732427477353,0.0242763,97949.0,97939.0,0.12581288]
[1732427477808,0.0242763,97949.0,97940.0,0.15]
[1732427478793,0.10201427,97948.0,97940.0,0.15]
[1732427479012,0.02427632,97947.0,97939.0,0.06290644]
[1732427479233,0.10201427,97946.0,97939.0,0.06290644]
[1732427479472,0.02427633,97945.0,97939.0,0.06290644]
[1732427479683,0.02427633,97945.0,97934.0,0.0017184]
[1732427479684,0.0464,97942.0,97934.0,0.0017184]
[1732427479908,0.18289071,97941.0,97934.0,0.0017184]
[1732427480163,0.0796,97940.0,97934.0,0.0017184]
[1732427480426,0.0796,97938.0,97934.0,0.0017184]
[1732427480671,0.10329081,97937.0,97934.0,0.0017184]
[1732427480878,0.0796,97935.0,97934.0,0.0017184]
[1732427481085,0.18289085,97935.0,97934.0,0.0017184]
[1732427481772,0.20589085,97935.0,97934.0,0.0017184]
[1732427482711,0.19589085,97935.0,97934.0,0.0017184]
[1732427486400,0.24479085,97935.0,97934.0,0.0017184]
[1732427486623,0.24351427,97935.0,97934.0,0.0017184]
[1732427486849,0.23851427,97935.0,97934.0,0.0017184]
[1732427498256,0.23851427,97935.0,97920.0,0.06290644]
[1732427498257,0.023,97934.0,97920.0,0.06290644]
[1732427498465,0.10329085,97933.0,97920.0,0.06290644]
[1732427498923,0.023,97932.0,97920.0,0.06290644]
[1732427499154,0.10329084,97931.0,97920.0,0.06290644]
[1732427499412,0.023,97930.0,97920.0,0.06290644]
[1732427499625,0.10329089,97929.0,97920.0,0.06290644]
[1732427499854,0.023,97928.0,97920.0,0.06290644]
[1732427500082,0.10329089,97927.0,97920.0,0.06290644]
[1732427500312,0.023,97926.0,97920.0,0.06290644]
[1732427500538,0.1032909,97925.0,97920.0,0.06290644]
[1732427500751,0.023,97924.0,97915.0,0.06290644]
[1732427500967,0.10329091,97923.0,97915.0,0.06290644]
[1732427501179,0.023,97922.0,97915.0,0.06290644]
[1732427501389,0.00127664,97921.0,97915.0,0.06290644]
[1732427502503,0.00127664,97921.0,97920.0,0.0017182]
[1732427504243,0.12501427,97922.0,97920.0,0.0017182]
[1732427505693,0.023,97922.0,97921.0,0.02613511]
[1732427506333,0.023,97922.0,97920.0,0.0017182]
[1732427512329,0.02427663,97934.0,97920.0,0.0017182]
[1732427512542,0.023,97932.0,97924.0,0.06290644]
[1732427512746,0.10201427,97931.0,97920.0,0.12753108]
[1732427512929,0.023,97930.0,97922.0,0.06290644]
[1732427513174,0.02989628,97930.0,97922.0,0.06290644]
[1732427513800,0.00127653,97929.0,97922.0,0.06290644]
[1732427514222,0.023,97927.0,97922.0,0.06290644]
[1732427514435,0.00127653,97926.0,97920.0,0.06290644]
[1732427514661,0.023,97925.0,97920.0,0.0017184]
[1732427514898,0.00127654,97924.0,97920.0,0.0017184]
[1732427515305,0.00127654,97929.0,97920.0,0.0017184]
[1732427515743,0.023,97927.0,97920.0,0.0017184]
[1732427515984,0.08619639,97928.0,97920.0,0.0017184]
[1732427515985,0.023,97925.0,97920.0,0.0017184]
[1732427516189,0.00127654,97924.0,97920.0,0.0017184]
[1732427516401,0.023,97923.0,97920.0,0.0017184]
[1732427516620,0.023,97923.0,97920.0,0.04323191]
[1732427516855,0.00689629,97922.0,97920.0,0.0017184]
[1732427517929,0.02427654,97925.0,97920.0,0.0017184]
[1732427518141,0.00689628,97921.0,97920.0,0.0017184]
[1732427518351,0.023,97927.0,97920.0,0.0017184]
[1732427518598,0.00689628,97921.0,97920.0,0.0017184]
[1732427518802,0.00127653,97926.0,97920.0,0.0017184]
[1732427519007,0.00689628,97921.0,97920.0,0.0017184]
[1732427519214,0.00127653,97926.0,97920.0,0.0017184]
[1732427519455,0.00689628,97921.0,97920.0,0.0017184]
[1732427519640,0.00689634,97925.0,97920.0,0.0017184]
[1732427519886,0.00689628,97921.0,97920.0,0.0017184]
[1732427520119,0.023,97924.0,97920.0,0.0017184]
[1732427520347,0.0069136,97921.0,97920.0,0.0017184]
[1732427520575,0.02427653,97927.0,97920.0,0.0017184]
[1732427520798,0.0069136,97921.0,97920.0,0.0017184]
[1732427521008,0.02427653,97927.0,97920.0,0.0017184]
[1732427521234,0.0069136,97921.0,97920.0,0.0017184]
[1732427521441,0.02427653,97927.0,97920.0,0.0432774]
[1732427521661,0.0069136,97921.0,97920.0,0.0432774]
[1732427521908,0.02427653,97927.0,97920.0,0.0017184]
[1732427522122,0.0069136,97921.0,97920.0,0.0017184]
[1732427522354,0.02427653,97927.0,97920.0,0.0017184]
[1732427522571,0.00690514,97921.0,97920.0,0.0017184]
[1732427522795,0.02427653,97927.0,97920.0,0.0017184]
[1732427523209,0.023,97925.0,97920.0,0.0017184]
[1732427523673,0.023,97923.0,97920.0,0.0017184]
[1732427524122,0.00690505,97922.0,97920.0,0.0017184]
[1732427525272,0.02427653,97927.0,97920.0,0.0017184]
[1732427525469,0.00690504,97921.0,97920.0,0.0017184]
[1732427525671,0.02427653,97927.0,97920.0,0.0017184]
[1732427525887,0.00690465,97921.0,97920.0,0.0017184]
[1732427526087,0.02427653,97927.0,97920.0,0.0017184]
[1732427526314,0.00690465,97921.0,97920.0,0.04314093]
[1732427526469,0.02513593,97927.0,97920.0,0.04314093]
[1732427526677,0.00690465,97921.0,97920.0,0.04314093]
[1732427526878,0.02513593,97927.0,97920.0,0.04314093]
[1732427527076,0.00690465,97921.0,97920.0,0.04314093]
[1732427527281,0.00690465,97921.0,97920.0,0.0017184]
[1732427528074,0.02513593,97927.0,97920.0,0.0017184]
[1732427528493,0.023,97925.0,97920.0,0.0017184]
[1732427528904,0.00690469,97924.0,97920.0,0.0017184]
[1732427535572,0.00690469,97924.0,97920.0,0.04382503]
[1732427536052,0.00690469,97924.0,97920.0,0.0017184]
[1732427540053,0.00690469,97924.0,97920.0,0.04376271]
[1732427540282,0.00690469,97924.0,97920.0,0.0017184]
[1732427541832,0.023,97923.0,97920.0,0.0017184]
[1732427542284,0.00689888,97922.0,97920.0,0.0017184]
[1732427542711,0.023,97926.0,97920.0,0.0017184]
[1732427542939,0.00689886,97921.0,97920.0,0.0017184]
[1732427543147,0.02427652,97926.0,97920.0,0.0017184]
[1732427543381,0.00689886,97921.0,97920.0,0.0017184]
[1732427543594,0.02427652,97926.0,97920.0,0.0017184]
[1732427543857,0.00689886,97921.0,97920.0,0.0017184]
[1732427544102,0.02427652,97926.0,97920.0,0.0017184]
[1732427544787,0.023,97924.0,97920.0,0.04302339]
[1732427545210,0.023,97922.0,97920.0,0.0017184]
[1732427545721,0.00689886,97921.0,97920.0,0.0017184]
[1732427549579,0.00689886,97921.0,97920.0,0.04289104]
[1732427552479,0.03117538,97921.0,97920.0,0.04289104]
[1732427552693,0.15967538,97921.0,97920.0,0.04289104]
[1732427555089,0.15965297,97921.0,97920.0,0.04289104]
[1732427561714,0.16051237,97921.0,97920.0,0.04289104]
[1732427562392,0.16051237,97921.0,97920.0,0.0017184]
[1732427566740,0.16051237,97921.0,97920.0,0.04304969]
[1732427576507,0.11341237,97921.0,97920.0,0.04304969]
[1732427576711,0.11341237,97921.0,97920.0,0.08864969]
[1732427576712,0.00773585,97921.0,97920.0,0.08864969]
[1732427576921,0.00773585,97921.0,97920.0,0.16704969]
[1732427577120,0.0008594,97921.0,97920.0,0.31704969]
[1732427581207,0.0008594,97924.0,97921.0,0.15]
[1732427582086,0.0017174,97963.0,97920.0,0.16704969]
[1732427582087,0.0792,97947.0,97927.0,0.0492]
[1732427582305,0.0084771,97946.0,97938.0,0.15]
[1732427582519,0.0084771,97946.0,97938.0,0.1992]
[1732427582739,0.0792,97956.0,97938.0,0.1992]
[1732427582740,0.00127619,97955.0,97938.0,0.22733307]
[1732427583435,0.023,97954.0,97938.0,0.22733307]
[1732427583691,0.023,97952.0,97939.0,0.02813307]
[1732427583894,0.00864372,97947.0,97939.0,0.15]
[1732427584111,0.023,97946.0,97939.0,0.15]
[1732427585034,0.023,97954.0,97936.0,0.06290644]
[1732427585249,0.023,97952.0,97936.0,0.06290644]
[1732427585470,0.023,97950.0,97936.0,0.06290644]
[1732427585681,0.023,97952.0,97936.0,0.06290644]
[1732427585937,0.00127619,97951.0,97936.0,0.06290644]
[1732427586166,0.023,97950.0,97936.0,0.06290644]
[1732427586473,0.023,97950.0,97938.0,0.06290644]
[1732427586474,0.0238591,97948.0,97938.0,0.06290644]
[1732427586680,0.023,97946.0,97938.0,0.06290644]
[1732427587309,0.0008591,97948.0,97938.0,0.06290644]
[1732427588208,0.0008591,97948.0,97939.0,0.1957]
[1732427588635,0.0008591,97948.0,97940.0,0.02709543]
[1732427589286,0.0008591,97948.0,97941.0,0.082]
[1732427589492,0.0008591,97948.0,97942.0,0.02566082]
[1732427589725,0.0008591,97948.0,97942.0,0.17566082]
[1732427593994,0.0017174,97963.0,97946.0,0.1957]
[1732427594200,0.023,97962.0,97951.0,0.15]
[1732427594862,0.023,97962.0,97951.0,0.17494432]
[1732427595091,0.023,97962.0,97952.0,0.0483]
[1732427595322,0.023,97962.0,97952.0,0.07324432]
[1732427600680,0.023,97962.0,97951.0,0.15]
[1732427601159,0.00891946,97959.0,97951.0,0.15]
[1732427601375,0.00891946,97959.0,97950.0,0.12581288]
[1732427601376,0.00891946,97959.0,97950.0,0.06290644]
[1732427601633,0.023,97962.0,97950.0,0.06290644]
[1732427601853,0.023,97962.0,97951.0,0.15]
[1732427602078,0.00891946,97959.0,97951.0,0.15]
[1732427602323,0.023,97962.0,97951.0,0.15]
[1732427604619,0.023,97962.0,97952.0,0.02296937]
[1732427608410,0.0484,97961.0,97951.0,0.15]
[1732427608801,0.00892865,97959.0,97951.0,0.15]
[1732427610662,0.076,97958.0,97951.0,0.15]
[1732427611156,0.00891865,97957.0,97951.0,0.15]
[1732427615632,0.00891865,97957.0,97950.0,0.04034265]
[1732427615877,0.023,97962.0,97950.0,0.04034265]
[1732427616096,0.023,97962.0,97947.0,0.06290644]
[1732427616320,0.00891477,97959.0,97947.0,0.06290644]
[1732427616561,0.00891477,97959.0,97948.0,0.15]
[1732427617882,0.00891477,97959.0,97949.0,0.06290644]
[1732427618121,0.00891477,97959.0,97948.0,0.15]
[1732427618352,0.00891477,97959.0,97920.0,0.06462484]
[1732427618353,0.00891477,97959.0,97949.0,0.06290644]
[1732427620152,0.0451,97958.0,97949.0,0.06290644]
[1732427620644,0.0089147,97957.0,97949.0,0.06290644]
[1732427625778,0.0089147,97957.0,97948.0,0.0017176]
[1732427626266,0.103,97956.0,97948.0,0.0017176]
[1732427626483,0.023,97954.0,97948.0,0.0017176]
[1732427626913,0.00891463,97953.0,97948.0,0.0017176]
[1732427627838,0.00890999,97952.0,97948.0,0.0017176]
[1732427628559,0.0468,97955.0,97948.0,0.0017176]
[1732427628560,0.00890997,97951.0,97948.0,0.0017176]
[1732427629006,0.00890996,97950.0,97948.0,0.0017176]
[1732427629226,0.1268,97949.0,97948.0,0.0017176]
[1732427629452,0.13570994,97949.0,97948.0,0.0017176]
[1732427632674,0.13348245,97949.0,97948.0,0.0017176]
[1732427636778,0.05348245,97949.0,97948.0,0.0017176]
[1732427636986,0.00668245,97949.0,97948.0,0.0017176]
[1732427637221,0.00127608,97980.0,97948.0,0.0017176]
[1732427637463,0.1262903,97971.0,97960.0,0.12581288]
[1732427637714,0.1262903,97971.0,97960.0,0.06290644]
[1732427639549,0.1262903,97971.0,97960.0,0.12581288]
[1732427639768,0.1262903,97971.0,97960.0,0.06290644]
[1732427639976,0.1262903,97971.0,97960.0,0.12581288]
[1732427640210,0.023,97969.0,97960.0,0.12581288]
[1732427640451,0.00127603,97968.0,97960.0,0.12581288]
[1732427641091,0.00666846,97967.0,97960.0,0.12581288]
[1732427641979,0.00659246,97967.0,97960.0,0.12581288]
[1732427642182,0.00659246,97967.0,97961.0,0.15]
[1732427643601,0.00745136,97967.0,97961.0,0.15]
[1732427649448,0.09135844,98015.0,97968.0,0.2]
[1732427649692,0.13789666,98018.0,97968.0,0.2]
[1732427649693,0.000859,98018.0,97983.0,0.15]
[1732427649953,0.000859,98018.0,98008.0,0.06290644]
[1732427651101,0.10201427,98017.0,97984.0,0.0172202]
[1732427651351,0.00076924,98016.0,98008.0,0.06290644]
[1732427652440,0.00076924,98016.0,98000.0,0.06290644]
[1732427652441,0.10201427,98015.0,98000.0,0.06290644]
[1732427652664,0.00076924,98014.0,98000.0,0.06290644]
[1732427652923,0.10201427,98013.0,98000.0,0.06290644]
[1732427653125,0.00076924,98012.0,98000.0,0.06290644]
[1732427653555,0.023,98010.0,97990.0,0.06290644]
[1732427653777,0.10278351,98009.0,97990.0,0.06290644]
[1732427653985,0.0685,98008.0,97990.0,0.06290644]
[1732427654189,0.10278351,98007.0,97990.0,0.06290644]
[1732427654400,0.023,98006.0,97990.0,0.06290644]
[1732427654631,0.10278351,98005.0,97990.0,0.06290644]
[1732427655495,0.10278351,98005.0,97995.0,0.06290644]
[1732427656822,0.10278351,98005.0,97990.0,0.09566829]
[1732427659040,0.00127555,98004.0,97990.0,0.09566829]
[1732427659258,0.10328982,98004.0,97990.0,0.09566829]
[1732427659938,0.00127555,98004.0,97990.0,0.09566829]
[1732427660173,0.0811,98011.0,97991.0,0.01973915]
[1732427660391,0.08187541,98020.0,98001.0,0.09566829]
[1732427660613,0.00127539,98015.0,98001.0,0.11464617]
[1732427660830,0.00127539,98014.0,98002.0,0.16897788]
[1732427661053,0.00694821,98014.0,98002.0,0.16897788]
[1732427661739,0.00567282,98014.0,98002.0,0.16897788]
[1732427663544,0.00694821,98014.0,98002.0,0.16897788]
[1732427665387,0.00694821,98014.0,98002.0,0.210141]
[1732427665822,0.00567282,98014.0,98002.0,0.210141]
[1732427666240,0.00694821,98014.0,98002.0,0.210141]
[1732427666451,0.00567282,98014.0,98002.0,0.210141]
[1732427667114,0.00567282,98014.0,98003.0,0.15076106]
[1732427667349,0.00567282,98014.0,98004.0,0.09566829]
[1732427667575,0.0008587,98016.0,98005.0,0.15076071]
[1732427667804,0.0008587,98016.0,98006.0,0.02238074]
[1732427668033,0.0008587,98016.0,98007.0,0.00076068]
[1732427668268,0.0008587,98016.0,98008.0,0.02314142]
[1732427668973,0.0008587,98016.0,98009.0,0.06155855]
[1732427669185,0.00127518,98037.0,98020.0,0.09566829]
[1732427669388,0.10328942,98036.0,98020.0,0.09566829]
[1732427669602,0.10908484,98036.0,98020.0,0.09566829]
[1732427671163,0.023,98035.0,97973.0,0.2]
[1732427671400,0.023,98033.0,98000.0,0.09566829]
[1732427671612,0.023,98031.0,98010.0,0.09566829]
[1732427671821,0.023,98029.0,98010.0,0.09566829]
[1732427672028,0.023,98027.0,98010.0,0.09566829]
[1732427672272,0.023,98025.0,98010.0,0.09566829]
[1732427672481,0.023,98023.0,98010.0,0.09566829]
[1732427672702,0.10328964,98022.0,98010.0,0.09566829]
[1732427672921,0.10908953,98022.0,98010.0,0.09566829]
[1732427674352,0.10908953,98022.0,98011.0,0.1877855]
[1732427675909,0.023,98021.0,98011.0,0.1877855]
[1732427676094,0.10328963,98020.0,98011.0,0.1877855]
[1732427676329,0.10908028,98020.0,98011.0,0.1877855]
[1732427676976,0.10908028,98020.0,97995.0,0.0017168]
[1732427677176,0.10908028,98020.0,98010.0,0.13674334]
[1732427677391,0.10908028,98020.0,98010.0,0.09566829]
[1732427679635,0.00579065,98020.0,98011.0,0.00076084]
[1732427679845,0.00579065,98020.0,98012.0,0.0761]
[1732427680055,0.00127518,98038.0,98012.0,0.07686069]
[1732427680275,0.00578825,98019.0,98012.0,0.07686069]
[1732427680715,0.1032894,98037.0,98012.0,0.07686069]
[1732427680930,0.1032894,98037.0,98020.0,0.09566829]
[1732427681147,0.00578852,98036.0,98020.0,0.09566829]
[1732427681380,0.00127513,98035.0,98020.0,0.09566829]
[1732427681900,0.00578849,98034.0,98020.0,0.09566829]
[1732427682128,0.00127513,98033.0,98020.0,0.09566829]
[1732427682584,0.10201427,98032.0,98010.0,0.09566829]
[1732427682799,0.13137518,98031.0,98010.0,0.09566829]
[1732427683220,0.0058131,98030.0,98010.0,0.09566829]
[1732427683460,0.00127519,98029.0,98010.0,0.09566829]
[1732427683905,0.00581307,98028.0,98010.0,0.09566829]
[1732427687435,0.00581307,98028.0,98018.0,0.09566829]
[1732427687646,0.00581307,98028.0,98019.0,0.00076056]
[1732427687849,0.1301,98031.0,98019.0,0.00076056]
[1732427688124,0.0831,98031.0,98019.0,0.00076056]
[1732427688549,0.00580702,98030.0,98019.0,0.00076056]
[1732427688758,0.005731,98030.0,98019.0,0.00076056]
[1732427689639,0.005731,98030.0,98020.0,0.00076058]
[1732427689850,0.047,98039.0,98020.0,0.00076058]
[1732427690068,0.047,98039.0,98029.0,0.09566829]
[1732427690292,0.00583017,98038.0,98029.0,0.09566829]
[1732427690746,0.0831,98042.0,98029.0,0.09566829]
[1732427690970,0.00583015,98037.0,98029.0,0.09566829]
[1732427691195,0.0831,98042.0,98029.0,0.09566829]
[1732427691419,0.00583014,98036.0,98029.0,0.09566829]
[1732427692339,0.00127497,98041.0,98020.0,0.09566829]
[1732427692567,0.00583012,98035.0,98021.0,0.00076045]
[1732427692790,0.00127497,98041.0,98020.0,0.24566829]
[1732427693204,0.0058302,98040.0,98030.0,0.09566829]
[1732427696811,0.00127506,98039.0,98030.0,0.09566829]
[1732427697052,0.0058302,98040.0,98030.0,0.09566829]
[1732427697334,0.00583017,98038.0,98030.0,0.09566829]
[1732427697557,0.00127506,98041.0,98030.0,0.09566829]
[1732427697558,0.00583019,98039.0,98030.0,0.09566829]
[1732427697771,0.00583015,98037.0,98030.0,0.09566829]
[1732427697981,0.00583017,98038.0,98020.0,0.24566829]
[1732427698224,0.00583014,98036.0,98021.0,0.00076045]
[1732427698431,0.00127506,98041.0,98021.0,0.00076045]
[1732427698642,0.00127506,98040.0,98021.0,0.00076045]
[1732427698865,0.00127506,98041.0,98021.0,0.00076045]
[1732427699542,0.00127506,98041.0,98020.0,0.24566829]
[1732427699764,0.1271,98040.0,98020.0,0.24566829]
[1732427699982,0.00127506,98039.0,98020.0,0.24566829]
[1732427700204,0.00710985,98039.0,98020.0,0.24566829]
[1732427701379,0.00583479,98039.0,98021.0,0.00076045]
[1732427701595,0.00583479,98039.0,98020.0,0.24566829]
[1732427702039,0.00583479,98039.0,98021.0,0.00076045]
[1732427703800,0.00583479,98039.0,98029.0,0.09566829]
[1732427704003,0.00710985,98039.0,98029.0,0.09566829]
[1732427704855,0.00710985,98039.0,98020.0,0.24566829]
[1732427706231,0.00669309,98039.0,98021.0,0.00076045]
[1732427707561,0.00669309,98039.0,98029.0,0.09566829]
[1732427708887,0.00669309,98039.0,98030.0,0.1285]
[1732427709336,0.0008583,98039.0,98030.0,0.1285]
[1732427710428,0.0008583,98039.0,98031.0,0.15]
[1732427711112,0.0008583,98039.0,98029.0,0.09566829]
[1732427711424,0.00584042,98038.0,98029.0,0.09566829]
[1732427712084,0.0778,98037.0,98029.0,0.09566829]
[1732427712550,0.00587568,98036.0,98029.0,0.09566829]
[1732427716385,0.00587568,98036.0,98029.0,0.13662979]
[1732427720542,0.00587568,98036.0,98029.0,0.01580413]
[1732427720759,0.00587568,98036.0,98026.0,0.09566829]
[1732427721449,0.0823,98054.0,98028.0,0.2]
[1732427721655,0.00489968,98035.0,98027.0,0.1261]
[1732427721879,0.00489968,98035.0,98028.0,0.2]
[1732427722503,0.0823,98054.0,98027.0,0.1261]
[1732427722748,0.0008589,98055.0,98021.0,0.04254137]
[1732427722955,0.13491315,98049.0,98040.0,0.09566829]
[1732427723176,0.13,98049.0,98040.0,0.09566829]
[1732427723389,0.00491313,98048.0,98040.0,0.09566829]
[1732427729252,0.00491313,98048.0,98040.0,0.13768076]
[1732427730337,0.00491313,98048.0,98038.0,0.09566829]
[1732427730807,0.0008589,98055.0,98048.0,0.4]
[1732427731054,0.0008589,98055.0,98039.0,0.0825]
[1732427731055,0.0823,98075.0,98060.0,0.06267503]
[1732427732377,0.2823,98075.0,98065.0,0.06267503]
[1732427732835,0.2823,98075.0,98065.0,0.09551248]
[1732427735730,0.2,98074.0,98065.0,0.09551248]
[1732427735964,0.2,98074.0,98040.0,0.09551248]
[1732427735965,0.2,98055.0,98040.0,0.09551248]
[1732427736169,0.2,98055.0,98050.0,0.09551248]
[1732427737658,0.2,98055.0,98040.0,0.1364412]
[1732427737859,0.2,98055.0,98041.0,0.15]
[1732427738061,0.2,98055.0,98040.0,0.09551248]
[1732427738506,0.3233873,98055.0,98040.0,0.09551248]
[1732427738930,0.2,98053.0,98040.0,0.09551248]
[1732427740892,0.2,98049.0,98040.0,0.09551248]
[1732427741105,0.0454,98048.0,98040.0,0.09551248]
[1732427741968,0.0454,98048.0,98040.0,0.09723128]
[1732427746140,0.0454,98048.0,98041.0,0.15]
[1732427747063,0.2,98045.0,98041.0,0.15]
[1732427747554,0.2,98045.0,98040.0,0.04320056]
[1732427747783,0.2,98044.0,98040.0,0.04320056]
[1732427748280,0.023,98043.0,98040.0,0.04320056]
[1732427756385,0.1221,98042.0,98040.0,0.04320056]
[1732427760435,0.3221,98042.0,98040.0,0.04320056]
[1732427761069,0.223,98041.0,98040.0,0.04320056]
[1732427764350,0.22289661,98041.0,98040.0,0.04320056]
[1732427767265,0.22236461,98041.0,98040.0,0.04320056]
[1732427768510,0.023,98041.0,98040.0,0.04320056]
[1732427769772,0.32146461,98042.0,98040.0,0.04320056]
[1732427788976,0.20063957,98041.0,98040.0,0.04320056]
[1732427790711,0.32232401,98042.0,98040.0,0.04320056]
[1732427792396,0.19936461,98041.0,98040.0,0.04320056]
[1732427792607,0.32232401,98042.0,98040.0,0.04320056]
[1732427793168,0.44571131,98042.0,98040.0,0.04320056]
[1732427793830,0.2463467,98042.0,98040.0,0.04320056]
[1732427797098,0.19936461,98041.0,98040.0,0.04320056]
[1732427801781,0.19936461,98041.0,98031.0,0.06272139]
[1732427801996,0.20022401,98041.0,98031.0,0.06272139]
[1732427803911,0.0008594,98041.0,98031.0,0.06272139]
[1732427804112,0.0008594,98041.0,98032.0,0.15]
[1732427804292,0.0008594,98041.0,98032.0,0.17306825]
[1732427805118,0.0008594,98041.0,98032.0,0.02306825]
[1732427805332,0.0008594,98041.0,98032.0,0.17306825]
[1732427806426,0.0008594,98041.0,98032.0,0.02306825]
[1732427806849,0.0008594,98041.0,98032.0,0.17306825]
[1732427812846,0.0008594,98041.0,98032.0,0.02306825]
[1732427813282,0.0008594,98041.0,98032.0,0.17306825]
[1732427819747,0.0008594,98048.0,98032.0,0.17306825]
[1732427819954,0.0008594,98048.0,98038.0,0.12544278]
[1732427820155,0.0008594,98048.0,98039.0,0.16941974]
[1732427831040,0.19936461,98070.0,98039.0,0.16941974]
[1732427831268,0.1233873,98078.0,98061.0,0.15]
[1732427831481,0.00014639,98080.0,98068.0,0.12544278]
[1732427831713,0.00014639,98080.0,98069.0,0.15]
[1732427831919,0.00014639,98080.0,98069.0,0.16745404]
[1732427831920,0.07581389,98078.0,98069.0,0.16745404]
[1732427833559,0.07581389,98078.0,98069.0,0.01745404]
[1732427834725,0.15601389,98078.0,98069.0,0.01745404]
[1732427836922,0.07581389,98077.0,98069.0,0.01745404]
[1732427837832,0.0802,98078.0,98069.0,0.01745404]
[1732427838039,0.07581389,98077.0,98069.0,0.01745404]
[1732427839800,0.07581389,98077.0,98069.0,0.20830495]
[1732427840494,0.07581389,98077.0,98067.0,0.06272139]
[1732427841254,0.0810594,98078.0,98067.0,0.06272139]
[1732427841473,0.07581389,98077.0,98067.0,0.06272139]
[1732427842124,0.27645297,98077.0,98042.0,0.0442]
[1732427842331,0.27645297,98077.0,98067.0,0.06272139]
[1732427842537,0.1245,98071.0,98067.0,0.06272139]
[1732427842750,0.1245,98071.0,98061.0,0.15]
[1732427847112,0.0829,98077.0,98061.0,0.1915393]
[1732427847328,0.07581389,98077.0,98068.0,0.15]
[1732427848450,0.07581389,98077.0,98067.0,0.06272139]
[1732427849374,0.0008594,98078.0,98067.0,0.06272139]
[1732427849766,0.07581389,98077.0,98067.0,0.06272139]
[1732427850650,0.07581389,98077.0,98068.0,0.0017182]
[1732427851798,0.0008594,98078.0,98068.0,0.0017182]
[1732427852015,0.07667329,98078.0,98068.0,0.0017182]
[1732427852142,0.0008594,98078.0,98068.0,0.0017182]
[1732427852955,0.07581389,98077.0,98068.0,0.0017182]
[1732427855374,0.0008594,98078.0,98068.0,0.0017182]
[1732427855600,0.0008594,98078.0,98068.0,0.1517182]
[1732427855804,0.0008594,98078.0,98068.0,0.0017182]
[1732427856507,0.0008594,98078.0,98068.0,0.23890261]
[1732427858743,0.0008594,98078.0,98068.0,0.21443959]
[1732427859361,0.0008594,98078.0,98069.0,0.02446302]
[1732427859563,0.0008594,98078.0,98069.0,0.17446302]
[1732427860552,0.0008594,98078.0,98069.0,0.02446302]
[1732427873096,0.0008594,98078.0,98069.0,0.02618122]
[1732427874655,0.023,98080.0,98069.0,0.02618122]
[1732427875483,0.07581389,98081.0,98069.0,0.02618122]
[1732427875945,0.023,98080.0,98069.0,0.02618122]
[1732427877935,0.07581389,98081.0,98069.0,0.02618122]
[1732427878154,0.023,98080.0,98065.0,0.0817]
[1732427878366,0.023,98080.0,98071.0,0.06272139]
[1732427878783,0.07581389,98081.0,98071.0,0.06272139]
[1732427878986,0.023,98080.0,98071.0,0.06272139]
[1732427879459,0.07581389,98081.0,98071.0,0.06272139]
[1732427879805,0.023,98080.0,98071.0,0.06272139]
[1732427881092,0.07581389,98081.0,98071.0,0.06272139]
[1732427881307,0.023,98084.0,98071.0,0.06272139]
[1732427881532,0.07581389,98081.0,98071.0,0.06272139]
[1732427881770,0.023,98080.0,98071.0,0.06272139]
[1732427882415,0.023,98078.0,98071.0,0.06272139]
[1732427882675,0.023,98078.0,98040.0,0.06335678]
[1732427882676,0.023,98072.0,98045.0,0.15]
[1732427882886,0.023,98072.0,98044.0,0.0786]
[1732427882887,0.0479,98069.0,98061.0,0.15]
[1732427883099,0.023,98070.0,98061.0,0.15]
[1732427883100,0.0479,98067.0,98061.0,0.15]
[1732427885251,0.0479,98067.0,98066.0,0.0017184]
[1732427886565,0.130803,98067.0,98066.0,0.0017184]
[1732427888197,0.33016761,98067.0,98066.0,0.0017184]
[1732427889264,0.4059815,98067.0,98066.0,0.0017184]
[1732427891674,0.0479,98066.0,98057.0,0.06272139]
[1732427891958,0.0012747,98065.0,98057.0,0.06272139]
[1732427892580,0.12498859,98066.0,98057.0,0.06272139]
[1732427893493,0.0012747,98065.0,98057.0,0.06272139]
[1732427893936,0.12371389,98066.0,98057.0,0.06272139]
[1732427894378,0.12498859,98066.0,98057.0,0.06272139]
[1732427895248,0.0012747,98065.0,98057.0,0.06272139]
[1732427895690,0.12371389,98066.0,98057.0,0.06272139]
[1732427896494,0.12371389,98066.0,98058.0,0.15]
[1732427896887,0.3230785,98066.0,98058.0,0.15]
[1732427897829,0.0479,98066.0,98058.0,0.1517186]
[1732427898279,0.07581389,98069.0,98058.0,0.1517186]
[1732427898516,0.0454,98074.0,98058.0,0.1517186]
[1732427898736,0.07581389,98070.0,98064.0,0.06272139]
[1732427898947,0.07581389,98069.0,98064.0,0.06272139]
[1732427899242,0.0454,98074.0,98064.0,0.06272139]
[1732427900357,0.07581389,98070.0,98064.0,0.06272139]
[1732427900584,0.0454,98074.0,98060.0,0.06272139]
[1732427900871,0.07581389,98070.0,98060.0,0.06272139]
[1732427903479,0.0454,98074.0,98060.0,0.06272139]
[1732427903702,0.07581389,98070.0,98060.0,0.06272139]
[1732427904646,0.07581389,98071.0,98060.0,0.06272139]
[1732427905073,0.07581389,98070.0,98060.0,0.06272139]
[1732427905288,0.07581389,98071.0,98060.0,0.06272139]
[1732427908099,0.0454,98074.0,98060.0,0.06272139]
[1732427909185,0.0454,98074.0,98060.0,0.06443999]
[1732427909597,0.07581389,98076.0,98060.0,0.06443999]
[1732427909598,0.0008592,98080.0,98064.0,0.06272139]
[1732427909809,0.07581389,98077.0,98066.0,0.06272139]
[1732427912935,0.0008592,98080.0,98066.0,0.06272139]
[1732427913157,0.07581389,98077.0,98066.0,0.06272139]
[1732427913345,0.07667309,98080.0,98066.0,0.06272139]
[1732427913602,0.07581389,98077.0,98066.0,0.06272139]
[1732427914054,0.0008592,98080.0,98066.0,0.06272139]
[1732427914294,0.07581389,98079.0,98070.0,0.06272139]
[1732427914537,0.07581389,98079.0,98066.0,0.06272139]
[1732427914990,0.07581389,98079.0,98069.0,0.06272139]
[1732427919981,0.07581389,98079.0,98067.0,0.15]
[1732427922109,0.07667329,98079.0,98067.0,0.15]
[1732427923501,0.07667329,98079.0,98066.0,0.04223817]
[1732427923742,0.07667329,98079.0,98069.0,0.06272139]
[1732427935459,0.0008594,98079.0,98070.0,0.15]
[1732427935669,0.0498,98078.0,98069.0,0.06272139]
[1732427936726,0.0008594,98079.0,98069.0,0.06272139]
[1732427937144,0.0008594,98079.0,98070.0,0.15]
[1732427938006,0.0008594,98079.0,98071.0,0.0761]
[1732427938283,0.0008594,98079.0,98072.0,0.1944]